bitfinex-derivatives/quotes_ETHF0:USTF0_20250816
["timestamp","ask_amount","ask_price","bid_price","bid_amount"]
[1755367562670,1.4568,4402.3,4402.2,21.03501]
[1755367563075,0.2653,4402.3,4402.2,21.03501]
[1755367564685,0.2653,4402.3,4402.2,21.21527731]
[1755367565280,1.9337,4402.6,4402.5,0.45398]
[1755367565483,1.6684,4402.6,4402.5,24.24878]
[1755367566672,0.2653,4402.9,4402.8,0.45395]
[1755367566873,0.5098,4402.9,4402.8,21.04195]
[1755367567284,0.6731,4403.4,4403.3,0.4539]
[1755367567486,1.4568,4403.9,4403.8,0.45384]
[1755367567687,1.4568,4403.9,4403.8,24.25064]
[1755367568689,0.5098,4403.9,4403.8,24.25064]
[1755367568890,0.3653,4404.2,4404.1,0.45382]
[1755367569091,2.2773,4404.2,4404.1,21.05582]
[1755367569487,2.4406,4404.2,4404.1,21.05582]
[1755367569691,2.8088,4404.2,4404.1,21.05582]
[1755367569882,2.0328,4404.2,4404.1,21.05582]
[1755367570790,2.2773,4404.2,4404.1,21.05582]
[1755367571192,0.6098,4404.2,4404.1,21.05582]
[1755367572397,1.5568,4404.2,4404.1,21.05582]
[1755367575399,0.9409,4404.2,4404.1,21.05582]
[1755367575601,0.7731,4404.2,4404.1,21.05582]
[1755367576192,1.1413,4404.2,4404.1,21.05582]
[1755367576393,1.389,4404.2,4404.1,21.05582]
[1755367576700,1.5568,4404.2,4404.1,21.05582]
[1755367579302,0.3653,4404.2,4404.1,21.05582]
[1755367579507,0.3507,4404.2,4404.1,21.05582]
[1755367580006,1.6674,4404.4,4404.3,0.1631]
[1755367580200,1.9095,4404.4,4404.3,3.6171]
[1755367581004,2.9026,4404.4,4404.3,3.6171]
[1755367581603,1.6674,4404.4,4404.3,3.6171]
[1755367581808,1.2352,4405.0,4404.9,0.61683]
[1755367582107,1.4859,4405.0,4404.9,23.9579]
[1755367583004,1.1016,4405.0,4404.9,23.9579]
[1755367583208,1.4859,4405.0,4404.9,23.9579]
[1755367589604,0.4928,4405.0,4404.9,56.8911]
[1755367591602,3.2078,4406.3,4404.9,56.8911]
[1755367591809,1.4859,4405.7,4405.6,0.61676]
[1755367592009,1.4859,4405.7,4405.6,21.21676]
[1755367592313,1.4859,4405.7,4405.6,20.7631]
[1755367598111,2.15202023,4405.7,4405.6,20.7631]
[1755367599013,1.4859,4405.7,4405.6,20.7631]
[1755367602813,0.4928,4405.7,4405.6,20.7631]
[1755367603009,1.4859,4405.7,4405.6,21.0093]
[1755367603520,1.4859,4405.7,4405.6,20.7631]
[1755367608616,0.6461,4406.3,4406.2,0.4536]
[1755367608822,1.5007,4406.3,4406.2,24.4145]
[1755367609015,1.5007,4406.3,4406.2,24.6616]
[1755367610613,1.5007,4406.3,4406.2,24.4145]
[1755367610918,1.5007,4406.3,4406.2,24.6616]
[1755367611320,1.5007,4406.3,4406.2,24.4145]
[1755367611817,1.5007,4406.3,4406.2,24.6616]
[1755367612721,3.2078,4407.5,4406.2,24.6616]
[1755367612722,1.1041,4406.7,4406.6,0.63166]
[1755367612926,1.5007,4406.7,4406.6,21.45676]
[1755367614220,0.512,4407.4,4407.0,0.45352]
[1755367614425,1.5007,4407.2,4407.1,21.2176]
[1755367614824,1.5007,4407.2,4407.1,20.7641]
[1755367615428,1.1041,4407.2,4407.1,20.7641]
[1755367615624,3.5419,4407.5,4407.4,0.1781]
[1755367615828,4.7085,4407.5,4407.4,20.7601]
[1755367618127,1.1041,4408.0,4407.9,0.1781]
[1755367618321,1.5007,4408.0,4407.9,20.7591]
[1755367618920,0.5921,4408.2,4408.1,0.1781]
[1755367619117,0.5921,4408.2,4408.1,20.7611]
[1755367619520,0.5921,4408.2,4408.1,23.9689]
[1755367619826,1.5007,4408.2,4408.1,23.9689]
[1755367620123,0.9086,4408.9,4408.5,0.45336]
[1755367620328,1.5007,4408.7,4408.6,20.7991]
[1755367621024,0.5921,4408.7,4408.2,0.4534]
[1755367621230,1.5007,4408.3,4408.2,0.6315]
[1755367621431,1.5007,4408.3,4408.2,21.2485]
[1755367621922,1.5007,4408.3,4408.2,21.4956]
[1755367622122,0.7017,4408.3,4408.1,3.2078]
[1755367622330,1.2382,4408.2,4408.1,2.8069]
[1755367622532,1.5007,4408.2,4408.1,20.675]
[1755367622724,0.512,4408.2,4408.1,21.4715]
[1755367623029,0.512,4408.2,4408.1,21.7186]
[1755367623925,0.8461,4408.2,4408.1,21.7186]
[1755367624125,0.6745,4408.2,4408.1,21.7186]
[1755367624328,0.512,4408.2,4408.1,21.7306]
[1755367624528,1.5007,4408.2,4408.1,21.7306]
[1755367627931,1.5007,4408.2,4408.1,0.7965]
[1755367628131,1.5007,4408.2,4408.1,21.4745]
[1755367628630,1.5007,4408.2,4408.1,21.7216]
[1755367628931,1.5007,4408.7,4408.6,0.7965]
[1755367629434,1.5007,4408.7,4408.6,21.7166]
[1755367629733,1.5007,4408.7,4408.6,21.4695]
[1755367631530,1.5007,4408.7,4408.6,21.92286]
[1755367632038,1.5007,4408.7,4408.6,22.16996]
[1755367632532,3.66102,4410.0,4408.8,1.13334]
[1755367632730,0.5921,4409.5,4409.4,4.0043]
[1755367632933,1.5007,4409.5,4409.4,24.7173]
[1755367633333,1.1041,4409.5,4409.4,24.7173]
[1755367633638,1.5007,4409.5,4409.4,24.7173]
[1755367634436,1.5007,4409.5,4409.4,3.3859]
[1755367634636,1.5007,4409.5,4409.4,23.9178]
[1755367635132,1.5007,4409.5,4409.4,3.2078]
[1755367635333,1.5007,4409.5,4409.4,23.9228]
[1755367635931,1.5007,4409.5,4409.4,24.4766]
[1755367636135,0.8461,4409.5,4409.4,24.4736]
[1755367636337,1.5007,4409.5,4409.4,24.7163]
[1755367637938,1.5007,4409.5,4409.4,24.7103]
[1755367639136,1.5007,4409.5,4409.4,21.5025]
[1755367639337,1.5007,4409.5,4409.4,21.5015]
[1755367642232,1.4921,4409.0,4408.9,3.6171]
[1755367642436,1.4921,4409.0,4408.9,24.6975]
[1755367642736,1.4921,4409.0,4408.9,23.9018]
[1755367643339,1.4921,4409.0,4408.9,24.6985]
[1755367643841,1.4921,4409.0,4408.9,4.0045]
[1755367644141,1.4921,4409.0,4408.9,23.9018]
[1755367645040,1.94542,4409.0,4408.9,3.2078]
[1755367645342,1.4921,4409.0,4408.9,23.9028]
[1755367646636,1.4921,4409.0,4408.9,24.6995]
[1755367646839,1.4921,4409.0,4408.9,24.949]
[1755367647042,1.1266,4409.0,4408.9,24.949]
[1755367647440,0.6136,4409.2,4409.1,0.1636]
[1755367647740,0.9646,4409.2,4409.1,0.6588]
[1755367648041,0.5991,4409.3,4409.2,1.4995]
[1755367648248,1.1266,4409.3,4409.2,21.7362]
[1755367648642,1.4921,4409.3,4409.2,21.7362]
[1755367648839,1.4921,4409.7,4409.6,0.7967]
[1755367649044,2.15460305,4409.7,4409.6,21.4857]
[1755367649854,1.4921,4409.7,4409.6,21.4857]
[1755367650059,1.4921,4409.7,4409.6,1.0462]
[1755367650350,1.4921,4409.7,4409.6,21.7332]
[1755367650549,1.4921,4409.7,4409.6,21.4837]
[1755367655556,1.4921,4409.7,4409.6,21.7332]
[1755367657560,1.4921,4409.7,4409.6,21.4837]
[1755367660255,1.4921,4409.7,4409.6,21.4617]
[1755367665761,1.4921,4409.7,4409.6,0.2457]
[1755367665960,1.94537,4409.5,4409.4,3.2078]
[1755367666263,1.4921,4409.5,4409.4,23.8608]
[1755367670266,1.4921,4409.5,4409.4,24.2576]
[1755367670963,1.4921,4409.5,4409.4,24.4295]
[1755367671165,1.4921,4409.5,4409.4,24.6828]
[1755367671768,1.4921,4409.5,4409.4,3.2078]
[1755367672066,1.4921,4409.5,4409.4,23.8568]
[1755367672666,1.4921,4409.5,4409.4,24.6738]
[1755367673057,0.7002,4409.5,4409.4,24.9179]
[1755367673262,0.5009,4409.7,4409.6,1.0661]
[1755367673471,0.5009,4409.7,4409.6,21.7101]
[1755367675975,0.8343,4409.7,4409.6,21.7101]
[1755367676171,0.3609,4410.2,4410.1,0.4252]
[1755367676369,0.9505,4410.2,4410.1,21.466]
[1755367676872,1.4514,4410.2,4410.1,21.466]
[1755367679168,1.9046,4410.2,4410.1,21.466]
[1755367679974,1.9046,4410.2,4410.1,21.0338]
[1755367680163,1.9046,4410.2,4410.1,20.637]
[1755367680369,1.5437,4410.2,4410.1,20.637]
[1755367680675,1.9046,4410.2,4410.1,21.7031]
[1755367680874,1.9046,4410.2,4410.1,21.459]
[1755367681271,1.9046,4410.2,4410.1,20.637]
[1755367681775,0.45322,4410.1,4409.9,3.2078]
[1755367681970,1.4514,4410.0,4409.9,3.2078]
[1755367682170,1.4514,4410.0,4409.9,24.4085]
[1755367682370,1.4514,4410.0,4409.9,24.6618]
[1755367682567,0.5896,4409.4,4409.3,35.8618]
[1755367682772,1.4514,4409.4,4409.3,57.1347]
[1755367682971,1.4514,4409.4,4409.3,32.654]
[1755367683168,1.474,4409.4,4409.3,32.654]
[1755367683374,4.6818,4409.4,4409.3,53.299]
[1755367683578,1.4514,4409.4,4409.3,53.299]
[1755367683781,1.4514,4409.4,4409.3,53.6958]
[1755367684276,1.4514,4409.4,4409.3,53.9399]
[1755367684776,1.4514,4409.4,4409.3,54.3932]
[1755367684974,1.4514,4409.4,4409.3,53.9399]
[1755367685976,0.6631,4409.4,4409.3,53.9399]
[1755367686180,0.9505,4410.2,4410.1,0.822]
[1755367686376,0.9505,4410.2,4410.1,21.471]
[1755367686572,1.2038,4410.2,4410.1,21.471]
[1755367686779,1.4514,4410.2,4410.1,21.7151]
[1755367687281,1.4514,4410.2,4410.1,21.471]
[1755367688983,1.4514,4410.2,4410.1,20.649]
[1755367689183,1.4514,4410.2,4409.8,0.3968]
[1755367689383,1.4514,4409.8,4409.7,3.2078]
[1755367689582,1.90465,4409.8,4409.3,32.8981]
[1755367689776,0.8618,4409.7,4409.4,20.648]
[1755367689981,1.4514,4409.5,4409.4,21.0732]
[1755367690181,1.4514,4409.5,4409.4,21.3173]
[1755367690486,1.4514,4409.5,4409.4,21.7161]
[1755367691182,0.2476,4409.5,4409.4,21.472]
[1755367691382,0.5009,4409.5,4409.4,21.7161]
[1755367692083,1.4514,4409.5,4409.4,21.7161]
[1755367692578,1.4514,4409.5,4409.4,21.472]
[1755367692778,1.4514,4409.5,4409.4,20.645]
[1755367692985,1.4514,4409.5,4409.3,32.654]
[1755367693184,0.5896,4409.5,4409.4,20.644]
[1755367693584,0.5896,4409.5,4409.4,21.0408]
[1755367693776,1.4514,4409.5,4409.4,21.0408]
[1755367693980,1.4514,4409.5,4409.4,21.2127]
[1755367694182,0.8343,4409.5,4409.4,21.7101]
[1755367694377,0.5009,4409.5,4409.4,21.7101]
[1755367695380,0.8343,4409.5,4409.4,21.7101]
[1755367695580,1.0905,4409.5,4409.4,21.7101]
[1755367695787,1.4514,4409.5,4409.4,21.7101]
[1755367696082,1.4514,4409.5,4409.4,21.466]
[1755367696783,1.4514,4409.5,4409.4,21.7101]
[1755367697188,0.5009,4409.5,4409.4,21.7101]
[1755367697388,0.9505,4409.9,4409.8,0.87845]
[1755367697588,0.9505,4409.9,4409.8,22.16235]
[1755367697881,0.1622,4409.9,4409.8,22.16235]
[1755367698090,0.6631,4409.9,4409.8,22.16235]
[1755367699083,0.8398,4409.9,4409.8,22.16235]
[1755367699485,1.2095,4409.9,4409.8,22.16235]
[1755367700384,1.4562,4409.9,4409.8,22.16235]
[1755367701889,0.4193,4410.1,4410.0,0.2457]
[1755367702191,1.225,4410.1,4410.0,21.446]
[1755367702786,1.1072,4410.1,4410.0,21.6959]
[1755367703091,1.4769,4410.1,4410.0,21.6959]
[1755367704184,1.1072,4410.1,4410.0,21.6959]
[1755367704382,1.1072,4410.1,4410.0,1.0579]
[1755367704584,1.1072,4410.1,4410.0,21.6879]
[1755367707593,1.4769,4410.1,4410.0,21.6879]
[1755367711298,1.13281,4411.1,4410.7,0.808]
[1755367711299,1.4769,4410.8,4410.7,0.808]
[1755367711487,1.4769,4410.8,4410.7,21.467]
[1755367712396,1.4769,4410.8,4410.7,1.0579]
[1755367712592,1.4769,4410.8,4410.7,21.7149]
[1755367713393,0.596,4410.8,4410.4,0.45319]
[1755367713694,1.4769,4410.5,4410.4,0.84919]
[1755367713896,1.4769,4410.5,4410.4,21.92319]
[1755367714199,0.3697,4411.1,4410.4,20.662]
[1755367714405,0.596,4410.6,4410.5,1.26118]
[1755367714696,1.4769,4410.6,4410.5,1.51108]
[1755367715200,1.1072,4410.6,4410.5,1.51108]
[1755367715495,1.1072,4410.6,4410.5,22.18208]
[1755367715693,1.4769,4410.6,4410.5,21.476]
[1755367718394,1.4769,4410.6,4410.4,0.45318]
[1755367718591,1.4769,4410.4,4410.3,3.2078]
[1755367718795,1.4769,4410.4,4410.3,23.8688]
[1755367719093,1.4769,4410.4,4410.3,24.2648]
[1755367719391,1.4769,4410.4,4410.3,24.88429]
[1755367719597,1.4769,4410.4,4410.3,25.12999]
[1755367720097,1.4769,4410.4,4410.3,4.46899]
[1755367720299,1.4769,4410.4,4410.3,25.12799]
[1755367721199,1.4769,4410.4,4410.3,24.6748]
[1755367721996,1.4769,4410.4,4410.3,3.3741]
[1755367722199,1.4769,4410.4,4410.3,23.8628]
[1755367722593,1.4769,4410.4,4408.4,1.31308344]
[1755367722594,1.4769,4409.8,4409.1,3.2078]
[1755367722795,1.4769,4409.4,4409.1,3.2078]
[1755367722997,1.4769,4409.4,4409.3,53.33]
[1755367723392,0.5112,4409.4,4409.3,53.726]
[1755367723597,1.1072,4409.4,4409.3,53.33]
[1755367723797,1.4769,4409.4,4409.3,53.726]
[1755367724898,0.5112,4409.4,4409.3,53.9759]
[1755367725904,0.5112,4410.0,4409.6,0.412]
[1755367726105,0.596,4409.8,4409.7,21.493]
[1755367726307,1.4769,4409.8,4409.7,22.19615]
[1755367726505,1.4769,4409.8,4409.7,21.7429]
[1755367726902,1.4769,4409.8,4409.7,21.493]
[1755367727208,1.1072,4409.8,4409.7,21.7429]
[1755367727405,0.9657,4410.2,4410.1,0.84]
[1755367727707,0.9657,4410.2,4410.1,22.1797]
[1755367728410,0.9657,4410.2,4410.1,21.5333]
[1755367728800,0.596,4410.2,4410.1,20.686]
[1755367729307,1.1056,4410.2,4410.1,20.686]
[1755367729505,1.4969,4410.2,4410.1,20.686]
[1755367730110,1.4969,4410.2,4410.1,20.684]
[1755367730907,0.243,4410.1,4409.6,3.2078]
[1755367731102,1.4949,4409.7,4409.6,3.2078]
[1755367731303,1.4949,4409.7,4409.3,32.901]
[1755367731507,0.594,4409.4,4409.3,32.654]
[1755367731808,1.4949,4409.4,4409.3,53.341]
[1755367732105,1.4949,4409.4,4409.3,33.5216]
[1755367732307,1.4949,4409.4,4409.3,53.341]
[1755367732510,1.4949,4409.4,4409.3,53.588]
[1755367733309,1.4949,4409.4,4409.3,32.654]
[1755367733507,1.94819,4409.4,4409.3,53.337]
[1755367735109,1.4949,4409.4,4409.3,53.337]
[1755367736014,1.4949,4409.4,4409.3,53.351]
[1755367736512,1.4949,4409.4,4409.3,53.349]
[1755367739211,1.4949,4409.4,4409.3,53.344]
[1755367739611,1.4949,4409.4,4409.3,53.591]
[1755367739811,1.4949,4409.4,4409.3,54.2116]
[1755367740006,1.4949,4409.4,4409.3,53.9559]
[1755367741519,1.4949,4409.4,4409.3,53.591]
[1755367741713,1.4949,4409.4,4409.3,54.2116]
[1755367741915,1.4949,4409.4,4409.3,33.2659]
[1755367742109,1.4949,4409.4,4409.3,53.9669]
[1755367742508,1.4949,4409.4,4409.3,53.9819]
[1755367742813,1.4949,4409.4,4409.3,33.2659]
[1755367743013,1.4949,4409.4,4409.3,53.9809]
[1755367743311,1.4949,4409.4,4409.3,54.2366]
[1755367743707,1.4949,4409.4,4409.3,33.5216]
[1755367743912,0.45329,4409.5,4409.3,53.367]
[1755367744217,1.70519,4409.5,4409.4,1.4564]
[1755367744818,1.70519,4409.5,4409.4,22.1684]
[1755367746317,3.2078,4409.7,4409.4,21.3008]
[1755367746518,0.45328,4409.6,4409.5,1.4564]
[1755367746817,0.45328,4409.6,4409.4,20.712]
[1755367746818,0.45326,4409.7,4409.6,1.4564]
[1755367747020,0.45325,4409.8,4409.7,1.4564]
[1755367747215,0.2666,4409.8,4409.7,1.4564]
[1755367747619,0.45324,4409.9,4409.7,1.4564]
[1755367747917,1.11114,4409.9,4409.8,22.1654]
[1755367748114,1.70514,4409.9,4409.8,22.1654]
[1755367748517,1.94814,4409.9,4409.8,22.1654]
[1755367748708,0.45327,4409.6,4409.5,0.5888]
[1755367748914,1.14415,4409.8,4409.7,0.5888]
[1755367749618,1.14415,4409.8,4409.7,1.4564]
[1755367750422,0.87755,4409.8,4409.7,1.4564]
[1755367750722,0.87755,4409.8,4409.7,22.1684]
[1755367750921,1.70515,4409.8,4409.7,22.1684]
[1755367752620,1.2519,4409.8,4409.7,22.1684]
[1755367753519,0.8606,4409.8,4409.7,22.1684]
[1755367753724,1.2519,4409.8,4409.7,22.1684]
[1755367754623,1.2519,4409.8,4409.7,1.4564]
[1755367754922,1.4949,4409.8,4409.7,22.1744]
[1755367755522,1.4949,4409.8,4409.7,1.4564]
[1755367755723,1.4949,4409.8,4409.7,22.1724]
[1755367756326,1.4949,4409.8,4409.7,1.4564]
[1755367756622,1.4949,4409.8,4409.7,22.1704]
[1755367757531,1.2519,4409.8,4409.7,22.1704]
[1755367758024,0.45324,4409.9,4409.7,21.3028]
[1755367758324,1.04724,4409.9,4409.8,1.4564]
[1755367758728,1.68714,4409.9,4409.8,1.4564]
[1755367760027,1.92964,4409.9,4409.8,22.1634]
[1755367762233,1.68714,4409.9,4409.8,22.1634]
[1755367762532,1.2339,4409.9,4409.8,22.1634]
[1755367764023,1.0642,4409.9,4409.8,22.1634]
[1755367766429,1.2287,4409.9,4409.8,22.1634]
[1755367767028,1.4712,4409.9,4409.8,22.1634]
[1755367767535,1.2287,4409.9,4409.8,22.1634]
[1755367768024,3.2078,4410.2,4409.8,21.2958]
[1755367768223,0.7907,4410.1,4410.0,0.5725]
[1755367768529,0.4152,4410.1,4410.0,22.1126]
[1755367769425,0.3755,4410.2,4410.1,0.8561]
[1755367769630,0.3755,4410.2,4410.1,0.5725]
[1755367769832,0.6293,4410.2,4410.1,0.5725]
[1755367770031,0.8937,4410.2,4410.1,0.5725]
[1755367770338,1.2196,4410.2,4410.1,1.4286]
[1755367770636,1.0551,4409.9,4409.8,1.2646]
[1755367770830,1.2196,4409.9,4409.8,22.1096]
[1755367771835,1.2196,4409.9,4409.8,22.1056]
[1755367773338,1.4621,4409.9,4409.8,0.8151]
[1755367773539,1.4621,4409.9,4409.8,21.0806]
[1755367774630,1.4621,4409.9,4409.8,21.4417]
[1755367774932,1.4621,4409.9,4409.8,21.6941]
[1755367775342,1.4621,4409.9,4409.8,21.0806]
[1755367775828,1.4621,4409.9,4409.8,21.4417]
[1755367776028,0.45324,4410.0,4409.3,33.10729]
[1755367776029,1.4621,4409.4,4409.3,33.5101]
[1755367776237,1.4621,4409.4,4409.3,33.149]
[1755367776439,1.4621,4409.4,4409.3,53.5686]
[1755367776941,1.4621,4409.4,4409.3,54.1821]
[1755367783240,1.4621,4409.4,4409.3,32.8966]
[1755367783444,1.4621,4409.4,4409.3,54.1811]
[1755367783633,1.4621,4409.4,4409.3,33.5101]
[1755367783838,1.4621,4409.4,4409.3,53.325]
[1755367785644,1.4621,4409.4,4409.3,32.654]
[1755367785844,1.4621,4409.4,4409.3,53.322]
[1755367786635,1.4847,4409.4,4409.3,32.654]
[1755367787036,2.35252009,4409.4,4409.3,53.321]
[1755367787240,2.35252009,4409.4,4409.3,20.2661]
[1755367787440,1.4621,4408.6,4408.5,1.262]
[1755367787639,1.91547,4408.6,4408.5,1.0096]
[1755367787939,1.91551,4408.3,4408.2,0.4066]
[1755367788143,1.91551,4408.3,4408.0,35.8598]
[1755367788453,1.4621,4408.2,4408.1,20.677]
[1755367788646,0.5797,4408.2,4408.1,20.677]
[1755367788842,0.9281,4408.1,4408.0,32.652]
[1755367789146,1.5165,4408.1,4408.0,53.33]
[1755367789351,1.70573,4407.1,4407.0,4.6809]
[1755367789546,1.70573,4407.1,4407.0,25.3649]
[1755367789848,1.97003,4407.1,4407.0,25.3649]
[1755367790244,1.97003,4407.1,4407.0,3.2078]
[1755367790444,1.97003,4407.1,4407.0,20.932]
[1755367790846,1.97003,4407.1,4407.0,21.1013]
[1755367791046,1.97003,4407.1,4407.0,21.4872]
[1755367791347,1.97003,4407.1,4407.0,21.1013]
[1755367793044,1.97003,4407.1,4407.0,21.4872]
[1755367794342,1.97003,4407.1,4407.0,21.7388]
[1755367795550,1.70576,4406.8,4406.7,33.5329]
[1755367795752,1.97006,4406.8,4406.7,53.337]
[1755367795940,1.97006,4406.8,4406.7,53.581]
[1755367796550,1.97006,4406.8,4406.7,54.2159]
[1755367800051,0.45356,4406.8,4406.7,53.9669]
[1755367800251,4.6689,4407.3,4407.2,1.4731]
[1755367800559,4.91344,4407.9,4407.8,1.4731]
[1755367800752,4.91344,4407.9,4407.8,22.1891]
[1755367802154,5.17774,4407.9,4407.8,22.1891]
[1755367802951,4.91344,4407.9,4407.8,22.1891]
[1755367803954,5.17774,4407.9,4407.8,22.1891]
[1755367825877,4.51324,4407.9,4407.8,22.1891]
[1755367826975,0.70845,4408.8,4408.7,0.7576]
[1755367827275,0.3803,4409.1,4408.4,32.667]
[1755367827276,0.45336,4408.7,4408.4,32.667]
[1755367827474,0.5911,4408.2,4408.1,0.2553]
[1755367827679,1.4811,4408.2,4408.1,0.2553]
[1755367827975,1.4811,4407.9,4407.8,3.2078]
[1755367828172,1.4811,4407.9,4407.8,23.9018]
[1755367828374,1.4811,4407.9,4407.8,24.1571]
[1755367828570,1.4811,4407.9,4407.8,24.5077]
[1755367834188,1.4811,4407.9,4407.8,3.8137]
[1755367834389,1.4811,4407.9,4407.8,24.4997]
[1755367834688,1.4811,4407.9,4407.8,24.4947]
[1755367834986,1.93454,4407.9,4407.8,24.4947]
[1755367835687,1.93454,4407.9,4407.8,3.8137]
[1755367835882,1.93454,4407.9,4407.8,24.4917]
[1755367836287,1.93454,4407.9,4407.8,3.8137]
[1755367836486,1.93454,4407.9,4407.8,24.4917]
[1755367845701,1.93454,4407.9,4407.8,3.8137]
[1755367845902,1.93454,4407.9,4407.8,24.4697]
[1755367847397,1.93454,4407.9,4407.8,3.8137]
[1755367847602,1.93454,4407.9,4407.8,24.4667]
[1755367850503,1.93454,4407.9,4407.8,24.2035]
[1755367850805,1.93454,4407.9,4407.8,3.8143]
[1755367851006,1.93454,4407.9,4407.8,24.4613]
[1755367853002,1.2445,4407.9,4407.2,3.2078]
[1755367853195,1.9163,4407.3,4407.2,3.2078]
[1755367853397,1.9163,4407.3,4407.2,18.7998]
[1755367853595,2.78304223,4407.3,4407.2,18.7998]
[1755367853796,2.78304223,4407.3,4407.2,15.592]
[1755367854001,0.5988,4406.9,4406.8,0.6066]
[1755367854197,1.66788753,4406.9,4406.8,0.6066]
[1755367854404,1.66788753,4406.9,4406.8,21.2646]
[1755367854595,2.12142753,4406.9,4406.8,21.2646]
[1755367855501,2.12142753,4406.9,4406.8,0.6066]
[1755367856004,2.12142753,4406.9,4406.8,21.2626]
[1755367856401,1.91634,4406.9,4406.8,0.6066]
[1755367857003,1.74244,4406.9,4406.8,21.4112]
[1755367857306,1.91634,4406.9,4406.8,21.2596]
[1755367860100,1.91634,4406.9,4406.8,0.6066]
[1755367860407,1.91634,4406.9,4406.8,21.2586]
[1755367864006,1.91634,4406.9,4406.8,0.6066]
[1755367864308,1.91634,4406.9,4406.8,21.2556]
[1755367864713,1.91634,4406.9,4406.8,21.2506]
[1755367865412,0.2456,4407.4,4406.8,20.9908]
[1755367865712,0.45348,4407.5,4407.4,0.7582]
[1755367866012,0.69908,4407.5,4407.4,21.4042]
[1755367867716,1.06698,4407.5,4407.4,21.4042]
[1755367869617,1.23598,4407.5,4407.4,21.4042]
[1755367870109,1.74238,4407.5,4407.4,21.4042]
[1755367870816,1.91628,4407.5,4407.4,21.4042]
[1755367871117,1.91628,4407.5,4407.4,21.2486]
[1755367871615,1.13332,4409.0,4407.5,0.0226]
[1755367871918,1.4628,4408.8,4408.7,0.6066]
[1755367872113,2.15755697,4408.8,4408.7,21.2616]
[1755367873423,1.91614,4408.8,4408.7,21.2616]
[1755367873912,0.2456,4408.8,4408.7,24.621]
[1755367874111,0.6223,4409.2,4409.1,0.3468]
[1755367874312,1.2358,4409.2,4409.1,21.4112]
[1755367874709,1.7422,4409.2,4409.1,21.4112]
[1755367874910,1.0384,4409.2,4409.1,21.4112]
[1755367875111,0.4146,4409.2,4409.1,21.4112]
[1755367875312,0.2456,4409.2,4409.1,21.4112]
[1755367876320,0.5369,4409.6,4409.5,0.6066]
[1755367876613,0.7928,4409.6,4409.5,21.4102]
[1755367876812,1.0384,4409.6,4409.5,21.4102]
[1755367877020,1.2889,4409.6,4409.5,21.4102]
[1755367877210,0.864,4410.1,4409.5,21.2586]
[1755367877410,0.87814,4409.8,4409.7,0.3468]
[1755367877617,1.24604,4409.8,4409.7,0.3468]
[1755367877922,3.83,4410.2,4410.1,0.3468]
[1755367878215,5.1238,4410.2,4410.1,21.2626]
[1755367884225,0.4189,4410.8,4410.7,0.3294]
[1755367884530,1.50112,4411.0,4410.9,0.3294]
[1755367884830,1.66352,4411.0,4410.9,0.5963]
[1755367885231,1.91132,4411.0,4410.9,0.5963]
[1755367892534,4.72257,4411.6,4410.8,0.4178]
[1755367892832,0.45311,4411.1,4410.8,0.3294]
[1755367893033,0.2478,4411.0,4410.9,0.7472]
[1755367894131,0.45308,4411.4,4411.3,0.161]
[1755367894331,0.45308,4411.4,4411.3,21.3852]
[1755367894332,0.70088,4411.4,4411.3,21.3852]
[1755367896138,0.70088,4411.4,4411.3,21.4012]
[1755367898240,1.08298,4411.4,4411.3,21.4012]
[1755367899241,0.70088,4411.4,4411.3,21.4012]
[1755367900542,0.2478,4411.4,4411.3,21.4012]
[1755367900940,0.70088,4411.4,4411.3,21.4012]
[1755367902040,1.08298,4411.4,4411.3,21.4012]
[1755367902242,1.24748,4411.4,4411.3,21.4012]
[1755367902444,0.86538,4411.4,4411.3,21.4012]
[1755367902739,1.74888,4411.4,4411.3,21.3852]
[1755367902942,1.91128,4411.4,4411.3,21.3852]
[1755367904833,0.45308,4411.5,4411.3,21.2343]
[1755367905039,1.08295,4411.7,4411.6,0.5963]
[1755367905340,2.56764431,4411.7,4411.6,21.3802]
[1755367905641,2.56764431,4411.7,4411.6,21.2293]
[1755367907841,1.77614431,4411.7,4411.6,21.2293]
[1755367908041,2.40524431,4411.7,4411.6,21.3802]
[1755367908439,2.62717525,4411.7,4411.6,21.3802]
[1755367908838,2.78957525,4411.7,4411.6,21.3802]
[1755367909141,2.78957525,4411.7,4411.6,21.2293]
[1755367909739,2.54257525,4411.7,4411.6,21.2293]
[1755367909935,1.96127525,4411.7,4411.6,21.2293]
[1755367910142,1.12612525,4411.7,4411.6,24.5884]
[1755367910342,0.90419431,4411.7,4411.6,3.9554]
[1755367910642,0.65639431,4411.7,4411.6,24.5844]
[1755367910845,0.6241,4411.9,4411.8,0.7625]
[1755367911044,0.2537,4411.9,4411.8,0.7625]
[1755367911339,0.91083901,4411.9,4411.8,0.7625]
[1755367911941,1.1549,4413.0,4411.8,0.7625]
[1755367911942,0.69491,4413.1,4412.9,0.1728]
[1755367912243,0.47571097,4413.0,4412.9,0.7625]
[1755367912442,0.2537,4413.0,4412.9,21.4005]
[1755367914744,1.03768,4413.3,4413.2,0.6112]
[1755367914949,1.25947124,4413.3,4413.2,0.6112]
[1755367915340,1.90378,4413.3,4413.2,0.6112]